bitfinex-derivatives/quotes_ETHF0:USTF0_20250106
["timestamp","ask_amount","ask_price","bid_price","bid_amount"]
[1736147784015,0.2736,3655.9,3655.7,41.07361]
[1736147784221,0.27359,3656.0,3655.8,0.2736]
[1736147784808,0.8607,3656.3,3655.7,40.8]
[1736147785019,0.27358,3656.1,3656.0,0.27359]
[1736147785617,0.4215,3656.4,3656.1,0.27358]
[1736147785815,3.2078,3657.0,3656.3,2.18266904]
[1736147786011,3.6301,3657.0,3656.3,2.18266904]
[1736147786318,0.27354,3656.7,3656.5,0.27355]
[1736147786516,0.27354,3656.6,3656.3,2.18266904]
[1736147786719,3.6301,3657.0,3656.1,3.2078]
[1736147786922,0.4075,3656.5,3655.9,0.27359]
[1736147787221,0.2736,3655.9,3655.7,0.27361]
[1736147787415,0.4224,3656.4,3655.7,0.27361]
[1736147787612,0.4224,3656.4,3655.6,0.4475]
[1736147787813,0.27361,3655.7,3655.6,0.72111]
[1736147788119,0.4223,3656.3,3655.6,0.4475]
[1736147788615,3.2078,3656.2,3655.6,0.4475]
[1736147788921,0.27358,3656.1,3655.5,0.27362]
[1736147789123,0.27361,3655.7,3655.5,0.27362]
[1736147789622,0.27361,3655.7,3655.6,0.27362]
[1736147790015,0.27362,3655.6,3655.5,0.27362]
[1736147791319,0.27362,3655.6,3655.4,3.48143]
[1736147791723,0.27362,3655.6,3655.5,0.27363]
[1736147792118,0.27363,3655.5,3655.4,3.48143]
[1736147792422,3.2078,3656.2,3655.4,3.2078]
[1736147792622,0.27361,3655.8,3655.7,0.27361]
[1736147792923,0.27361,3655.7,3655.6,0.27361]
[1736147794021,0.27361,3655.7,3655.4,3.2078]
[1736147794217,3.2078,3656.2,3655.4,3.2078]
[1736147794523,0.27363,3655.5,3655.4,3.48143]
[1736147794921,0.27363,3655.5,3655.4,3.2078]
[1736147795123,0.68396,3656.1,3655.4,3.2078]
[1736147795318,0.27363,3655.5,3655.4,3.2078]
[1736147796423,0.27363,3655.5,3655.4,3.48143]
[1736147796725,0.27363,3655.5,3655.4,3.2078]
[1736147797422,0.68408,3655.5,3654.9,3.2078]
[1736147797620,0.27366,3655.0,3654.9,3.2078]
[1736147797924,0.27366,3655.0,3654.9,44.28147]
[1736147798118,0.27366,3655.0,3654.9,44.0078]
[1736147799325,0.27366,3655.0,3654.9,44.28147]
[1736147800027,0.27366,3655.0,3654.9,44.0078]
[1736147800223,0.27366,3655.0,3654.9,3.2078]
[1736147800619,0.4138,3655.3,3654.9,40.8]
[1736147800620,3.6216,3655.3,3654.9,40.8]
[1736147800926,5.80426904,3655.3,3654.5,3.2078]
[1736147801124,0.27369,3654.6,3654.5,3.2078]
[1736147801332,0.27372,3654.2,3654.1,0.4137]
[1736147801620,0.27372,3654.2,3654.0,44.96195951]
[1736147801621,0.27373,3654.1,3654.0,44.52865951]
[1736147801928,2.18266904,3655.0,3654.0,44.52865951]
[1736147802120,0.8337,3654.6,3654.0,4.00238951]
[1736147802328,0.27371,3654.5,3654.1,0.27373]
[1736147802523,0.27371,3654.5,3654.0,3.72865951]
[1736147802722,0.27371,3654.5,3654.3,0.27371]
[1736147803028,0.8337,3654.6,3654.0,3.72865951]
[1736147803229,0.27371,3654.5,3654.0,3.72865951]
[1736147803429,0.27371,3654.5,3654.4,0.27371]
[1736147803731,0.27371,3654.5,3654.3,0.27371]
[1736147804329,0.27371,3654.4,3654.3,0.27371]
[1736147805027,0.27371,3654.4,3654.0,3.72865951]
[1736147805028,0.2737,3654.5,3654.1,0.27373]
[1736147805232,0.8337,3654.6,3654.0,3.72865951]
[1736147805433,0.27371,3654.4,3654.3,0.27371]
[1736147805728,0.27372,3654.3,3654.1,0.27373]
[1736147805928,0.27372,3654.2,3654.1,0.27373]
[1736147806230,0.27373,3654.1,3654.0,4.00238951]
[1736147806730,0.27373,3654.2,3654.1,0.27373]
[1736147806924,0.8337,3654.6,3654.0,4.00238951]
[1736147807123,0.8337,3654.6,3654.0,3.72865951]
[1736147807321,0.27373,3654.1,3654.0,3.72865951]
[1736147808329,0.27378,3653.5,3653.3,6.39953401]
[1736147808622,0.27378,3653.4,3653.3,6.39953401]
[1736147808823,0.27378,3653.4,3653.3,47.19953401]
[1736147809330,0.27378,3653.4,3653.3,6.39953401]
[1736147810034,0.27379,3653.3,3653.2,0.12585355]
[1736147811028,3.2078,3653.6,3653.2,0.12585355]
[1736147811429,0.27379,3653.3,3653.2,0.12585355]
[1736147814537,3.48157,3653.6,3653.3,0.27379]
[1736147814835,0.27378,3653.5,3653.2,41.19964355]
[1736147815030,3.2078,3653.6,3653.2,40.92585355]
[1736147815238,0.27379,3653.3,3653.2,40.92585355]
[1736147817231,0.27378,3653.5,3653.2,41.19964355]
[1736147817537,3.2078,3653.6,3653.5,0.27378]
[1736147818333,3.2078,3654.6,3653.5,3.6539]
[1736147818531,0.27371,3654.5,3654.3,0.27372]
[1736147818735,0.27372,3654.3,3654.1,0.27373]
[1736147818938,4.481,3654.7,3654.2,0.8767]
[1736147819147,0.27371,3654.4,3654.2,1.15042]
[1736147819348,0.2737,3654.5,3654.3,0.27371]
[1736147819546,3.2078,3654.7,3654.2,3.05936904]
[1736147819753,3.2078,3654.7,3654.6,0.27369]
[1736147822953,3.2078,3654.7,3654.3,40.8]
[1736147823148,3.48149,3654.7,3654.5,0.2737]
[1736147823649,0.27369,3654.7,3654.5,0.2737]
[1736147824246,0.27369,3654.7,3654.4,0.27371]
[1736147824446,0.27368,3654.8,3654.5,2.18266904]
[1736147824647,0.27368,3654.8,3654.6,0.27369]
[1736147825951,0.27369,3654.7,3654.6,0.27369]
[1736147826252,0.27369,3654.7,3654.5,0.27369]
[1736147826947,0.27369,3654.7,3654.3,40.8]
[1736147827154,0.27368,3654.8,3654.7,0.27369]
[1736147827546,0.27369,3654.7,3654.6,0.27369]
[1736147827745,3.2078,3655.0,3654.5,0.2737]
[1736147827943,3.2078,3655.0,3654.2,6.26716904]
[1736147827944,0.27369,3654.7,3654.2,6.26716904]
[1736147828150,3.2078,3655.0,3654.3,0.27371]
[1736147828345,0.27371,3654.4,3654.2,1.15042]
[1736147828542,0.27371,3654.4,3654.2,0.8767]
[1736147828865,0.27371,3654.4,3654.3,0.27372]
[1736147829042,3.2078,3655.0,3654.3,0.27372]
[1736147829245,0.2737,3654.5,3654.3,0.27372]
[1736147829754,3.2078,3655.0,3654.3,0.27372]
[1736147829954,0.27371,3654.4,3654.3,0.27372]
[1736147830551,0.2737,3654.5,3654.3,0.27372]
[1736147830754,0.2737,3654.5,3654.2,0.8767]
[1736147830948,0.2737,3654.5,3654.3,0.27372]
[1736147831347,0.2737,3654.6,3654.5,0.2737]
[1736147831542,3.2078,3655.0,3654.6,0.27369]
[1736147831543,0.27369,3654.7,3654.6,0.27369]
[1736147831853,3.2078,3655.0,3654.5,0.27369]
[1736147832150,3.2078,3655.0,3654.2,6.26716904]
[1736147832151,0.27371,3654.4,3654.2,4.0845]
[1736147832349,0.27371,3654.4,3654.2,1.15042]
[1736147832542,3.2078,3655.0,3654.2,1.15042]
[1736147832748,0.27372,3654.3,3654.2,1.15042]
[1736147832952,0.27372,3654.3,3654.1,0.27373]
[1736147833155,0.27373,3654.1,3654.0,41.07374]
[1736147833454,0.6842,3654.8,3653.8,3.2078]
[1736147833455,5.39046904,3654.5,3653.8,3.2078]
[1736147833650,1.3321,3654.0,3653.6,6.39953401]
[1736147833951,0.27376,3653.7,3653.6,6.39953401]
[1736147834251,1.3321,3654.0,3653.3,40.8]
[1736147834454,0.27378,3653.4,3653.3,40.8]
[1736147834955,3.2078,3653.6,3653.2,0.12585355]
[1736147835155,1.15669,3653.3,3653.2,0.12585355]
[1736147838856,0.27387,3652.3,3652.2,4.28424341]
[1736147839345,0.27387,3652.3,3652.2,1.8895504]
[1736147839549,0.27387,3652.3,3652.2,0.5313504]
[1736147839951,2.18266904,3652.5,3652.0,6.39953401]
[1736147840259,5.66434904,3652.1,3652.0,4.14978401]
[1736147841456,0.27391,3651.7,3651.4,3.48173]
[1736147841949,0.27393,3651.5,3651.4,3.2078]
[1736147844852,1.088,3651.8,3651.0,3.6399]
[1736147845054,0.27395,3651.3,3651.0,3.6399]
[1736147845254,1.088,3651.8,3651.0,3.6399]
[1736147845455,0.27394,3651.4,3651.1,0.27395]
[1736147845758,0.27392,3651.6,3651.4,0.27393]
[1736147845950,0.6846,3652.7,3651.5,3.2078]
[1736147846150,3.2078,3652.5,3651.9,3.2078]
[1736147846357,6.4111407,3652.9,3652.2,0.27387]
[1736147846559,0.27386,3652.4,3652.2,0.27387]
[1736147846754,0.27385,3652.5,3652.1,0.27388]
[1736147846955,2.18266904,3652.7,3652.0,0.8367]
[1736147847267,0.27388,3652.1,3652.0,0.8367]
[1736147847459,2.45652904,3652.4,3652.1,0.27388]
[1736147847659,3.2078,3652.5,3652.0,0.8367]
[1736147848062,3.48166,3652.5,3652.2,0.27387]
[1736147848360,3.2078,3652.5,3652.0,0.8367]
[1736147848564,3.2078,3652.5,3652.3,0.27386]
[1736147848965,3.2078,3652.5,3652.4,0.4364]
[1736147849163,3.48165,3652.5,3652.4,0.4364]
[1736147849562,3.2078,3652.5,3652.4,0.4364]
[1736147849859,3.48165,3652.5,3652.4,0.4364]
[1736147851664,3.2078,3652.5,3652.4,0.71026]
[1736147851866,3.2078,3652.9,3652.4,0.4364]
[1736147852161,5.29688735,3654.8,3652.8,5.88946904]
[1736147852365,5.29688735,3654.8,3652.5,1.088]
[1736147852366,1.7101707,3654.2,3654.0,3.2078]
[1736147852555,1.7101707,3654.2,3653.5,2.18266904]
[1736147852556,1.4364407,3654.2,3653.5,3.2078]
[1736147852758,2.45642904,3653.8,3653.6,40.8]
[1736147852968,2.45642904,3653.8,3653.5,3.2078]
[1736147852969,2.18266904,3653.8,3653.5,3.2078]
[1736147853167,0.27377,3653.6,3653.5,3.2078]
[1736147854065,0.27384,3652.8,3652.5,3.2078]
[1736147854266,2.18266904,3653.1,3652.5,3.2078]
[1736147854460,0.27381,3653.1,3652.7,0.27383]
[1736147854662,3.2078,3653.7,3652.5,3.2078]
[1736147854862,2.18266904,3653.5,3652.5,3.2078]
[1736147855062,0.27379,3653.4,3653.0,0.27381]
[1736147855461,0.27379,3653.4,3653.1,0.4171]
[1736147855669,0.2738,3653.3,3653.1,0.4171]
[1736147856068,3.2078,3653.7,3653.1,0.4171]
[1736147856261,0.27379,3653.3,3653.1,0.4171]
[1736147856462,5.39046904,3653.7,3653.1,0.8375]
[1736147856661,0.2738,3653.3,3653.1,0.8375]
[1736147857062,5.39046904,3653.7,3653.1,0.8375]
[1736147857266,0.27379,3653.4,3653.1,1.11131]
[1736147857565,0.27379,3653.4,3653.1,4.31911]
[1736147857763,0.27378,3653.5,3653.1,4.0453]
[1736147857960,0.27378,3653.5,3653.2,0.2738]
[1736147858367,0.27377,3653.6,3653.3,0.27379]
[1736147858562,0.27377,3653.6,3653.1,4.0453]
[1736147858860,0.27377,3653.6,3653.2,0.2738]
[1736147859063,0.27377,3653.6,3653.3,0.27379]
[1736147859259,2.60876904,3654.0,3653.1,4.0453]
[1736147859465,0.27375,3653.9,3653.6,0.27377]
[1736147859664,2.60876904,3654.0,3653.6,0.27376]
[1736147859665,0.27374,3654.0,3653.6,0.27376]
[1736147859869,0.27375,3653.9,3653.6,0.27376]
[1736147860173,0.27374,3654.0,3653.7,0.27376]
[1736147860470,0.27375,3653.9,3653.8,0.4403]
[1736147861672,3.2078,3654.1,3653.8,0.4403]
[1736147861974,3.2078,3654.1,3653.1,5.80756904]
[1736147861975,0.27378,3653.5,3653.2,0.2738]
[1736147862173,0.27378,3653.5,3653.2,0.7228]
[1736147862373,2.18266904,3654.0,3653.2,0.449]
[1736147862572,2.18266904,3654.0,3652.7,3.2078]
[1736147862573,0.27379,3653.3,3652.7,3.2078]
[1736147862768,0.27382,3652.9,3652.7,3.6568]
[1736147862970,2.18266904,3653.4,3652.7,3.6568]
[1736147863463,0.27383,3652.8,3652.7,3.6568]
[1736147864272,0.27383,3652.8,3652.7,3.2078]
[1736147864974,0.27386,3652.4,3652.3,3.6262]
[1736147865373,5.79956904,3653.1,3652.3,3.6262]
[1736147865875,0.27385,3652.7,3652.4,0.27386]
[1736147866075,0.27385,3652.6,3652.4,0.27386]
[1736147866964,5.79956904,3653.1,3652.3,3.6262]
[1736147867168,0.27385,3652.5,3652.3,3.90006]
[1736147867364,0.27385,3652.6,3652.4,0.27386]
[1736147867969,2.59176904,3653.1,3652.3,3.90006]
[1736147868277,0.27386,3652.4,3652.3,3.6262]
[1736147868478,2.59176904,3653.1,3652.3,3.6262]
[1736147868669,0.27386,3652.5,3652.3,3.90006]
[1736147869075,2.59176904,3653.1,3652.3,3.6262]
[1736147869274,0.27385,3652.6,3652.4,0.27386]
[1736147869469,2.59176904,3653.1,3652.3,3.6262]
[1736147869674,0.27386,3652.4,3652.3,3.90006]
[1736147869873,2.59176904,3653.1,3652.3,44.70006]
[1736147870177,0.27384,3652.7,3652.3,44.4262]
[1736147870377,0.27385,3652.6,3652.4,0.27386]
[1736147871575,0.27385,3652.6,3652.5,0.27385]
[1736147872075,0.27385,3652.6,3652.3,44.4262]
[1736147872379,0.27385,3652.6,3652.4,0.27386]
[1736147872578,0.27385,3652.6,3652.5,0.27385]
[1736147872779,0.27385,3652.5,3652.4,0.27386]
[1736147872980,2.59176904,3653.1,3652.4,0.27386]
[1736147872981,0.27385,3652.6,3652.4,0.27386]
[1736147873277,2.18266904,3653.4,3652.3,44.4262]
[1736147873781,0.27383,3652.9,3652.8,0.27383]
[1736147873982,2.18266904,3653.4,3652.8,0.27383]
[1736147874176,2.18266904,3653.4,3652.7,3.2078]
[1736147874480,0.2738,3653.2,3653.0,0.27381]
[1736147874777,2.18266904,3653.4,3653.0,0.27381]
[1736147874975,0.27381,3653.2,3653.0,0.27381]
[1736147875174,0.2738,3653.3,3652.9,0.27382]
[1736147875375,0.8905,3653.5,3653.1,3.2078]
[1736147875577,0.27376,3653.8,3653.6,0.27377]
[1736147875777,3.2078,3654.0,3653.5,3.2078]
[1736147875975,3.2078,3654.0,3653.7,0.27376]
[1736147875976,0.27375,3653.9,3653.7,0.27376]
[1736147876172,1.144,3654.1,3653.5,3.2078]
[1736147876382,0.27375,3653.9,3653.7,0.27376]
[1736147876578,1.144,3654.1,3653.7,0.27376]
[1736147876779,0.27375,3653.9,3653.7,0.27376]
[1736147877179,0.27376,3653.8,3653.6,0.27377]
[1736147877484,0.27375,3653.9,3653.7,0.27376]
[1736147877672,1.144,3654.1,3653.8,0.27376]
[1736147877878,1.144,3654.1,3653.5,3.2078]
[1736147878177,0.27374,3654.0,3653.8,0.27375]
[1736147879377,1.144,3654.1,3653.9,0.27375]
[1736147879378,0.27374,3654.1,3653.9,0.27375]
[1736147879583,0.27374,3654.1,3654.0,0.27374]
[1736147880280,0.27373,3654.2,3654.0,0.27374]
[1736147880678,4.0644,3654.4,3654.0,0.27374]
[1736147880981,4.0644,3654.4,3653.6,41.2427]
[1736147881176,0.27374,3654.0,3653.8,0.27375]
[1736147881376,0.27373,3654.2,3653.6,0.71647]
[1736147881577,0.27376,3653.7,3653.6,0.4427]
[1736147881776,0.27377,3653.6,3653.5,3.2078]
[1736147885883,0.4485,3653.6,3652.8,3.2078]
[1736147886073,0.4485,3653.6,3652.5,0.27385]
[1736147886074,0.27384,3652.7,3652.5,0.27385]
[1736147886675,2.18266904,3653.1,3652.4,4.0466]
[1736147886880,0.27385,3652.5,3652.4,4.0466]
[1736147887078,0.27385,3652.5,3652.4,3.2078]
[1736147887887,2.45651904,3652.5,3652.4,3.2078]
[1736147888086,0.27388,3652.1,3652.0,0.4082]
[1736147888380,0.2739,3651.9,3651.8,3.2078]
[1736147888575,0.27391,3651.8,3651.5,10.66589002]
[1736147888978,2.18266904,3651.9,3651.4,44.0078]
[1736147889178,0.27393,3651.5,3651.4,44.0078]
[1736147889886,0.4483,3651.8,3651.4,44.0078]
[1736147890276,0.27393,3651.5,3651.4,44.0078]
[1736147890781,0.27391,3651.8,3651.5,0.27392]
[1736147890981,0.27391,3651.8,3651.5,0.27393]
[1736147891177,0.27391,3651.7,3651.4,44.28173]
[1736147891684,0.27392,3651.6,3651.4,44.28173]
[1736147891885,0.27392,3651.6,3651.4,44.0078]
[1736147892185,0.27393,3651.5,3651.4,44.0078]
[1736147892777,4.00837904,3652.2,3651.4,44.0078]
[1736147892984,0.27392,3651.6,3651.4,44.28173]
[1736147893187,0.27392,3651.6,3651.4,44.0078]
[1736147893385,0.27393,3651.5,3651.4,44.0078]
[1736147893575,3.32366904,3652.2,3651.4,44.0078]
[1736147893779,0.2739,3651.9,3651.7,0.27391]
[1736147893979,0.27389,3652.1,3651.9,0.27389]
[1736147894178,0.27389,3652.1,3651.9,0.4458]
[1736147894385,0.27389,3652.1,3651.9,0.7197]
[1736147894583,2.18266904,3652.5,3651.9,0.4458]
[1736147894974,0.27389,3652.1,3651.9,0.4458]
[1736147895181,7.26063241,3652.7,3651.9,0.4458]
[1736147895386,6.38593241,3652.7,3651.9,0.4458]
[1736147895589,0.27387,3652.3,3652.1,0.27388]
[1736147895783,2.18266904,3652.8,3652.2,0.27387]
[1736147895987,2.18266904,3652.8,3652.2,3.2078]
[1736147896183,0.27387,3652.3,3652.2,3.2078]
[1736147896686,0.27387,3652.3,3652.2,40.8]
[1736147897585,0.27387,3652.3,3652.2,44.0078]
[1736147898784,0.5,3652.0,3651.2,10.66589002]
[1736147898989,2.45659904,3651.5,3651.2,10.66589002]
[1736147899289,3.59759904,3651.5,3651.2,10.66589002]
[1736147899492,3.32366904,3651.5,3651.2,8.53271202]
[1736147899693,0.27394,3651.3,3651.2,8.53271202]
[1736147900188,3.48174,3651.3,3651.2,8.53271202]
[1736147900595,3.48174,3651.3,3651.2,7.95353202]
[1736147901092,3.48174,3651.3,3651.0,10.66589002]
[1736147901093,0.27402,3650.3,3650.1,3.2078]
[1736147901290,0.8622,3651.4,3650.1,3.2078]
[1736147901291,2.18266904,3650.8,3650.1,3.2078]
[1736147901588,0.27405,3649.9,3649.8,0.4362]
[1736147902091,0.27406,3649.8,3649.7,7.95353202]
[1736147902486,2.18266904,3650.2,3649.6,3.48187]
[1736147902487,0.27403,3650.1,3649.6,3.48187]
[1736147902691,0.27404,3650.0,3649.6,3.48187]
[1736147903094,0.27404,3650.0,3649.7,0.27406]
[1736147903394,2.18266904,3649.9,3649.3,6.43080685]
[1736147903688,2.18266904,3649.9,3649.3,6.85180685]
[1736147903889,2.18266904,3649.9,3649.3,0.421]
[1736147904091,0.27407,3649.6,3649.3,0.69509]
[1736147904284,0.27411,3649.1,3649.0,6.43080685]
[1736147904586,2.45677904,3649.1,3649.0,6.43080685]
[1736147904792,0.412,3649.5,3649.0,6.43080685]
[1736147905096,0.27409,3649.4,3649.0,6.43080685]
[1736147905399,0.2741,3649.3,3649.0,6.43080685]
[1736147905586,0.27411,3649.2,3649.0,6.43080685]
[1736147905893,0.2741,3649.2,3648.8,0.27413]
[1736147906388,0.2741,3649.3,3648.8,0.27412]
[1736147906685,5.39046904,3648.9,3647.8,6.43080685]
[1736147906890,5.39046904,3648.9,3647.7,3.2078]
[1736147906891,2.18266904,3648.0,3647.7,9.63860685]
[1736147907086,2.18266904,3648.6,3647.7,9.63860685]
[1736147907395,2.18266904,3648.6,3647.8,41.0742]
[1736147907789,0.27417,3648.3,3647.8,41.0742]
[1736147907997,2.18266904,3648.6,3647.8,40.8]
[1736147908189,0.27418,3648.2,3647.8,40.8]
[1736147908384,0.27417,3648.4,3648.1,3.2078]
[1736147908689,2.18266904,3648.6,3648.1,3.2078]
[1736147908690,2.18266904,3649.7,3648.1,5.39046904]
[1736147908996,0.27406,3649.8,3649.2,3.2078]
[1736147909186,5.2155,3650.0,3649.2,3.4819]
[1736147909388,5.48954,3650.0,3649.2,3.4819]
[1736147909597,4.34854,3650.0,3649.2,3.2078]
[1736147909897,5.2155,3650.0,3649.2,3.2078]
[1736147910193,0.27405,3649.9,3649.2,3.2078]
[1736147910590,0.27405,3649.9,3649.2,3.4819]
[1736147910892,3.2078,3650.6,3650.0,0.27404]
[1736147911093,3.2078,3650.6,3649.8,5.39046904]
[1736147911299,3.2078,3650.6,3650.2,0.27402]
[1736147911499,3.2078,3650.6,3650.1,0.27403]
[1736147911995,2.18266904,3650.2,3649.8,3.2078]
[1736147912399,2.18266904,3650.5,3649.8,3.2078]
[1736147912596,2.18266904,3650.5,3650.2,0.27402]
[1736147914000,2.18266904,3650.5,3649.9,0.27405]
[1736147914196,3.2078,3650.6,3650.5,0.274]
[1736147914393,2.18266904,3650.8,3649.9,0.427]
[1736147914598,3.2078,3652.3,3650.8,0.68495]
[1736147914790,2.61016904,3652.2,3651.5,3.2078]
[1736147914997,5.80217169,3651.6,3650.8,0.27398]
[1736147915303,2.59437169,3651.6,3651.5,0.27393]
[1736147915604,0.27391,3651.8,3650.8,0.27398]
[1736147915898,0.27396,3651.2,3650.7,3.48178]
[1736147916203,0.4145,3651.1,3650.7,3.48178]
[1736147916701,0.4145,3651.1,3650.8,0.27398]
[1736147917500,0.4145,3651.1,3650.9,0.27397]
[1736147917704,0.4145,3651.1,3650.8,0.27398]
[1736147918296,0.4145,3651.1,3650.7,3.2078]
[1736147918607,2.59437169,3650.8,3650.3,3.2078]
[1736147918802,2.86835169,3650.8,3650.3,3.2078]
[1736147919202,2.86835169,3650.8,3650.3,3.48181]
[1736147919505,0.27399,3650.7,3650.3,3.48181]
[1736147919708,2.59437169,3650.8,3650.3,3.2078]
[1736147920103,2.59437169,3650.8,3650.5,0.274]
[1736147920304,2.59437169,3650.8,3650.3,3.2078]
[1736147920509,2.59437169,3650.8,3650.6,0.274]
[1736147921303,2.59437169,3650.8,3650.3,3.2078]
[1736147921703,2.59437169,3650.8,3649.5,3.2078]
[1736147921704,2.59437169,3650.4,3649.5,3.2078]
[1736147922012,2.59437169,3650.0,3649.1,3.2078]
[1736147922201,0.27406,3649.9,3649.5,0.27408]
[1736147922504,3.75637169,3650.0,3649.3,0.2741]
[1736147922505,0.27407,3649.7,3649.3,0.2741]
[1736147923012,0.4509,3649.6,3649.1,3.2078]
[1736147923204,0.4509,3649.6,3649.4,0.27409]
[1736147923600,0.4509,3649.6,3649.1,3.2078]
[1736147923803,3.2078,3650.1,3649.1,3.2078]
[1736147924002,3.2078,3650.1,3650.0,0.27404]
[1736147924309,8.8929,3650.1,3648.5,3.2078]
[1736147924508,2.59437169,3648.6,3648.5,3.48196]
[1736147925008,2.59437169,3648.6,3648.5,3.2078]
[1736147925314,2.59437169,3648.6,3648.5,3.48196]
[1736147926612,5.80217169,3649.0,3648.9,0.27413]
[1736147926805,2.59437169,3649.0,3648.9,0.27413]
[1736147927512,2.59437169,3649.0,3648.7,0.27414]
[1736147927812,2.59437169,3649.0,3647.5,2.29448]
[1736147927813,5.80217169,3648.8,3647.4,3.2078]
[1736147928012,2.59437169,3648.1,3648.0,0.27419]
[1736147928207,0.8626,3648.9,3648.4,0.27416]
[1736147928409,0.8626,3648.9,3648.3,3.2078]
[1736147928713,3.2078,3648.8,3648.3,3.2078]
[1736147929109,3.2078,3648.8,3647.8,3.2078]
[1736147929110,2.59437169,3648.7,3647.8,3.2078]
[1736147929309,2.86859169,3647.7,3647.1,0.27426]
[1736147929513,3.2078,3647.5,3647.2,0.27425]
[1736147929808,3.2078,3647.5,3647.1,0.27425]
[1736147930014,3.2078,3647.5,3647.2,0.27425]
[1736147930215,0.27428,3646.9,3646.3,6.70512685]
[1736147930407,3.48202,3647.7,3646.5,0.2743]
[1736147930714,0.27424,3647.5,3646.4,3.6188]
[1736147930902,3.2078,3647.7,3646.4,3.6188]
[1736147931102,3.2078,3647.7,3646.8,0.27428]
[1736147931314,0.27425,3647.3,3646.8,0.27428]
[1736147931615,3.2078,3646.9,3645.9,0.499]
[1736147931818,0.68556,3647.6,3646.4,0.27431]
[1736147931819,3.2078,3646.5,3646.4,0.27431]
[1736147932208,3.2078,3646.5,3645.9,41.299]
[1736147932718,3.4821,3646.5,3645.9,41.299]
[1736147933116,3.2078,3646.5,3645.9,41.57334]
[1736147933312,0.4312,3647.3,3645.9,0.499]
[1736147933313,0.27434,3646.0,3645.9,0.499]
[1736147933816,3.2078,3646.1,3645.9,0.499]
[1736147934214,0.27434,3646.0,3645.9,0.499]
[1736147934816,3.2078,3646.1,3645.9,0.499]
[1736147935012,3.2078,3646.1,3645.1,40.8]
[1736147935013,3.2078,3646.1,3645.1,44.0078]
[1736147935215,2.59437169,3645.2,3644.6,0.27444]
[1736147935426,2.59437169,3645.2,3644.3,0.448]
[1736147935609,2.59437169,3645.2,3644.6,3.2078]
[1736147935810,0.27441,3645.1,3644.6,3.2078]
[1736147936014,2.86877169,3645.2,3644.5,0.27445]
[1736147936211,2.59437169,3644.8,3644.4,0.4188]
[1736147936710,2.59437169,3644.8,3644.2,3.2078]
[1736147936912,2.86880169,3644.8,3644.1,0.27448]
[1736147937111,0.27448,3644.1,3643.5,0.27453]
[1736147937320,2.59437169,3644.4,3643.6,3.2078]
[1736147937521,3.2078,3644.5,3643.9,3.2078]
[1736147937824,3.2078,3644.5,3644.1,0.27448]
[1736147938218,3.2078,3644.5,3644.2,0.27447]
[1736147938419,3.2078,3644.5,3644.1,0.27448]
[1736147938728,2.59437169,3644.8,3644.4,3.2078]
[1736147938923,2.59437169,3645.2,3644.7,0.27443]
[1736147939223,2.59437169,3645.2,3644.6,0.27444]
[1736147939421,2.59437169,3645.2,3644.9,0.27442]
[1736147939623,3.2078,3645.3,3644.4,3.2078]
[1736147939624,3.2078,3645.3,3644.5,0.4509]
[1736147939822,3.2078,3645.3,3645.2,0.2744]
[1736147940017,0.27434,3646.0,3644.5,0.9]
[1736147940018,3.2078,3645.7,3645.6,0.27437]
[1736147940227,3.2078,3645.7,3644.9,3.2078]
[1736147941322,3.2078,3645.7,3645.6,0.27437]
[1736147941828,3.2078,3646.1,3645.6,40.8]
[1736147942021,0.4239,3647.0,3645.9,3.2078]
[1736147942022,3.2078,3646.7,3645.9,3.2078]
[1736147942224,3.2078,3646.7,3646.6,0.2743]
[1736147942422,3.2078,3646.7,3646.5,0.2743]
[1736147942629,3.2078,3646.7,3645.9,3.2078]
[1736147943024,1.264,3647.4,3646.3,3.2078]
[1736147943025,3.2078,3647.1,3646.3,3.2078]
[1736147943629,2.59437169,3647.2,3645.7,1.3096]
[1736147943630,2.59437169,3646.4,3645.7,0.4327]
[1736147943924,2.59437169,3646.0,3645.5,3.2078]
[1736147944130,6.07654169,3645.6,3645.0,0.27441]
[1736147944328,5.80217169,3645.6,3644.5,3.2078]
[1736147944531,0.27439,3645.4,3644.8,0.27443]
[1736147944724,5.80217169,3645.6,3644.5,44.0078]
[1736147945021,6.07655169,3645.6,3645.1,0.2744]
[1736147945426,0.4206,3646.6,3645.4,3.2078]
[1736147945729,2.59437169,3646.7,3645.6,3.2078]
[1736147946028,2.59437169,3646.7,3646.3,3.2078]
[1736147946525,3.2078,3647.0,3646.3,3.2078]
[1736147947024,3.2078,3647.0,3646.3,3.48212]
[1736147947226,3.2078,3647.0,3646.3,3.2078]
[1736147947532,0.27432,3646.4,3645.9,3.2078]
[1736147947924,3.2078,3646.5,3646.0,0.27434]
[1736147948422,3.2078,3646.5,3645.4,3.6176]
[1736147948725,3.2078,3646.5,3645.8,3.2078]
[1736147948925,3.2078,3646.5,3646.0,0.27433]
[1736147949225,3.2078,3646.5,3645.8,3.2078]
[1736147949429,3.2078,3646.5,3646.1,0.27433]
[1736147949624,3.2078,3646.5,3645.8,3.2078]
[1736147949830,3.2078,3646.5,3646.4,0.27431]
[1736147950030,3.2078,3647.0,3646.2,3.2078]
[1736147950230,3.2078,3647.0,3646.8,0.27428]
[1736147950437,0.1321,3648.3,3646.6,3.2078]
[1736147950438,3.2078,3647.9,3646.6,3.2078]
[1736147950632,3.482,3647.9,3646.7,0.27429]
[1736147950826,0.60045879,3647.8,3647.1,0.27426]
[1736147951026,0.32624879,3647.8,3646.6,3.2078]
[1736147951231,2.59437169,3647.6,3647.1,0.27426]
[1736147951525,2.59437169,3647.6,3646.6,3.2078]